bitfinex/quotes_BTCUSD_20250102
["timestamp","ask_amount","ask_price","bid_price","bid_amount"]
[1735827430367,0.90633575,96435.0,96434.0,0.00131889]
[1735827432864,0.89009196,96435.0,96434.0,0.00131889]
[1735827434648,0.91118233,96435.0,96434.0,0.00131889]
[1735827434854,0.89009196,96435.0,96434.0,0.00131889]
[1735827436439,0.89017746,96435.0,96434.0,0.00131889]
[1735827436842,0.74604182,96435.0,96434.0,0.00131889]
[1735827438802,0.84604182,96435.0,96434.0,0.00131889]
[1735827441161,0.86904182,96435.0,96434.0,0.00131889]
[1735827442634,0.8896826,96435.0,96434.0,0.00131889]
[1735827445603,0.90592616,96435.0,96434.0,0.00131889]
[1735827445817,0.76228538,96435.0,96434.0,0.00131889]
[1735827446007,0.74604182,96435.0,96434.0,0.00131889]
[1735827447555,0.74604182,96435.0,96434.0,0.13211889]
[1735827447556,0.6420555,96435.0,96434.0,0.13211889]
[1735827447809,0.4920555,96435.0,96434.0,0.14533078]
[1735827448011,0.5920555,96435.0,96434.0,0.13211889]
[1735827448977,0.7420555,96435.0,96434.0,0.13211889]
[1735827449199,0.75829744,96435.0,96434.0,0.13211889]
[1735827449620,0.75629744,96435.0,96434.0,0.00131889]
[1735827449828,0.75829744,96435.0,96434.0,0.00031889]
[1735827450053,0.86228376,96435.0,96434.0,0.00031889]
[1735827450266,0.84404182,96435.0,96434.0,0.00131889]
[1735827450480,0.84404182,96435.0,96434.0,0.00331889]
[1735827450692,0.84404182,96435.0,96434.0,0.00231889]
[1735827451138,0.84404182,96435.0,96434.0,0.00431889]
[1735827451340,0.84404182,96435.0,96434.0,0.00231889]
[1735827451557,0.84404182,96435.0,96434.0,0.00031889]
[1735827451776,0.7400555,96435.0,96434.0,0.00810078]
[1735827452633,0.7420555,96435.0,96434.0,0.00810078]
[1735827453106,0.7400555,96435.0,96434.0,0.00810078]
[1735827453318,0.7572973,96435.0,96434.0,0.07791889]
[1735827453530,0.7562973,96435.0,96434.0,0.12711889]
[1735827453744,0.7400555,96435.0,96434.0,0.12711889]
[1735827453926,0.7410555,96435.0,96434.0,0.12611889]
[1735827454373,0.7410555,96435.0,96434.0,0.12711889]
[1735827455528,0.3910555,96435.0,96434.0,0.12711889]
[1735827455765,0.3910555,96435.0,96434.0,0.13983078]
[1735827456366,0.40729654,96435.0,96434.0,0.13983078]
[1735827456574,0.3910555,96435.0,96434.0,0.13983078]
[1735827457229,0.3910555,96435.0,96434.0,0.13883078]
[1735827457430,0.3910555,96435.0,96434.0,0.12611889]
[1735827457643,0.6984485,96435.0,96434.0,0.12911889]
[1735827458040,0.6984485,96435.0,96434.0,0.12611889]
[1735827458751,0.6974485,96435.0,96434.0,0.12611889]
[1735827458927,0.6974485,96435.0,96434.0,0.13111889]
[1735827458928,0.6984485,96435.0,96434.0,0.13111889]
[1735827459092,0.4910555,96435.0,96434.0,0.13111889]
[1735827459669,0.4910555,96435.0,96434.0,0.13411889]
[1735827460655,0.3910555,96435.0,96434.0,0.13411889]
[1735827461060,0.4910555,96435.0,96434.0,0.13411889]
[1735827461869,0.50729617,96435.0,96434.0,0.13411889]
[1735827462479,0.75729617,96435.0,96434.0,0.00831889]
[1735827462678,0.86128249,96435.0,96434.0,0.00831889]
[1735827463344,0.86128249,96435.0,96434.0,0.00531889]
[1735827464278,0.86128249,96435.0,96434.0,0.00631889]
[1735827464715,0.86128249,96435.0,96434.0,0.00131889]
[1735827464935,0.86028249,96435.0,96434.0,0.00131889]
[1735827465355,0.88328249,96435.0,96434.0,0.00131889]
[1735827465901,0.88328249,96435.0,96434.0,0.00031889]
[1735827466343,0.98328249,96435.0,96434.0,0.00031889]
[1735827466545,1.06704182,96435.0,96434.0,0.00031889]
[1735827466757,1.06704182,96435.0,96434.0,0.00131889]
[1735827466758,1.14714182,96435.0,96434.0,0.00131889]
[1735827466978,1.23052216,96435.0,96434.0,0.00131889]
[1735827467188,1.26023245,96435.0,96434.0,0.00031889]
[1735827467378,1.26023245,96435.0,96434.0,8.9e-07]
[1735827467706,1.28300276,96435.0,96434.0,8.9e-07]
[1735827467908,1.19962242,96435.0,96434.0,8.9e-07]
[1735827468510,1.19462242,96435.0,96434.0,8.9e-07]
[1735827468724,1.20362242,96435.0,96434.0,8.9e-07]
[1735827469293,1.25762242,96435.0,96434.0,8.9e-07]
[1735827469501,0.657417,96424.0,96423.0,6.9e-07]
[1735827469697,1.20408361,96424.0,96423.0,4.4e-07]
[1735827469935,0.573,96423.0,96422.0,2.4e-07]
[1735827470100,1.09666661,96423.0,96422.0,2.4e-07]
[1735827470882,0.729236,96415.0,96414.0,8.4e-07]
[1735827471087,1.53456941,96415.0,96414.0,8.4e-07]
[1735827471913,0.757455,96406.0,96405.0,6.4e-07]
[1735827472126,1.35241132,96406.0,96405.0,6.4e-07]
[1735827472536,1.36866175,96406.0,96405.0,6.4e-07]
[1735827472965,1.37766175,96406.0,96405.0,6.4e-07]
[1735827473375,1.38912308,96406.0,96405.0,6.4e-07]
[1735827474208,1.39612308,96406.0,96405.0,6.4e-07]
[1735827474640,1.38912308,96406.0,96405.0,6.4e-07]
[1735827474859,1.39812308,96406.0,96405.0,6.4e-07]
[1735827475066,1.40412308,96406.0,96405.0,6.4e-07]
[1735827475278,1.5081094,96406.0,96405.0,6.4e-07]
[1735827476524,1.5021094,96406.0,96405.0,6.4e-07]
[1735827476700,1.48585897,96406.0,96405.0,6.4e-07]
[1735827476903,1.48985897,96406.0,96405.0,6.4e-07]
[1735827477546,1.28587265,96406.0,96405.0,6.4e-07]
[1735827477756,1.20787265,96406.0,96405.0,6.4e-07]
[1735827478430,0.98741132,96406.0,96405.0,6.4e-07]
[1735827478635,1.08741132,96406.0,96405.0,6.4e-07]
[1735827479575,1.28741132,96406.0,96405.0,6.4e-07]
[1735827479778,1.32141525,96406.0,96405.0,6.4e-07]
[1735827482276,1.33766575,96406.0,96405.0,6.4e-07]
[1735827486503,1.33301392,96406.0,96405.0,6.4e-07]
[1735827487125,1.32901392,96406.0,96405.0,6.4e-07]
[1735827487490,1.33401392,96406.0,96405.0,6.4e-07]
[1735827487891,1.32501392,96406.0,96405.0,6.4e-07]
[1735827488095,1.33401392,96406.0,96405.0,6.4e-07]
[1735827488307,1.33401392,96406.0,96391.0,4.4e-07]
[1735827488308,0.757486,96392.0,96391.0,4.4e-07]
[1735827488510,1.37842864,96392.0,96391.0,4.4e-07]
[1735827488758,1.37842864,96392.0,96380.0,2.4e-07]
[1735827488759,0.757509,96381.0,96380.0,2.4e-07]
[1735827488905,1.27446532,96381.0,96380.0,2.4e-07]
[1735827489586,1.28045921,96381.0,96380.0,6.2e-07]
[1735827491091,1.38245164,96381.0,96380.0,6.2e-07]
[1735827491294,1.39145164,96381.0,96380.0,6.2e-07]
[1735827491577,1.39744553,96381.0,96380.0,6.2e-07]
[1735827491928,1.40407532,96381.0,96380.0,6.2e-07]
[1735827492129,1.39507532,96381.0,96380.0,6.2e-07]
[1735827492334,1.28445921,96381.0,96380.0,6.2e-07]
[1735827492543,1.31634388,96381.0,96380.0,6.2e-07]
[1735827492933,1.31234388,96381.0,96380.0,6.2e-07]
[1735827493283,1.33805628,96381.0,96380.0,6.2e-07]
[1735827493401,1.37396595,96381.0,96380.0,6.2e-07]
[1735827494233,1.37405329,96381.0,96380.0,6.2e-07]
[1735827494495,1.50035329,96381.0,96380.0,6.2e-07]
[1735827494701,0.757539,96367.0,96366.0,6.2e-07]
[1735827494906,0.88452532,96367.0,96366.0,4.5e-07]
[1735827495123,1.38511143,96367.0,96366.0,4.5e-07]
[1735827495322,1.38511143,96367.0,96351.0,4.5e-07]
[1735827495323,0.780572,96352.0,96351.0,4.5e-07]
[1735827495506,1.27452832,96352.0,96351.0,4.5e-07]
[1735827495711,1.17452832,96352.0,96351.0,4.5e-07]
[1735827495919,0.97452832,96352.0,96351.0,0.08090045]
[1735827496120,1.07452832,96352.0,96351.0,0.08090045]
[1735827496529,0.97452832,96352.0,96351.0,0.08090045]
[1735827496730,1.09078616,96352.0,96351.0,0.08090045]
[1735827497521,1.10378616,96352.0,96351.0,0.08090045]
[1735827497921,1.09078616,96352.0,96351.0,0.08090045]
[1735827498116,0.99478616,96352.0,96351.0,0.08090045]
[1735827498318,0.90552832,96352.0,96351.0,0.0889905]
[1735827498531,0.90552832,96352.0,96351.0,0.08090045]
[1735827498894,0.90152832,96352.0,96351.0,0.08090045]
[1735827499103,1.05152832,96352.0,96351.0,0.08090045]
[1735827499308,1.05652832,96352.0,96351.0,0.08090045]
[1735827499934,1.05552832,96352.0,96351.0,0.08090045]
[1735827500398,1.05652832,96352.0,96351.0,0.08090045]
[1735827500816,0.95552832,96352.0,96351.0,0.08090045]
[1735827501023,1.05152832,96352.0,96351.0,0.08090045]
[1735827501438,1.05552832,96352.0,96351.0,0.08090045]
[1735827501669,1.14358162,96352.0,96351.0,0.08090045]
[1735827501887,1.26658162,96352.0,96351.0,4.5e-07]
[1735827502764,1.28283972,96352.0,96351.0,4.5e-07]
[1735827503557,1.19078642,96352.0,96351.0,4.5e-07]
[1735827504189,1.09078642,96352.0,96351.0,4.5e-07]
[1735827504763,1.06778642,96352.0,96351.0,4.5e-07]
[1735827505378,1.07178642,96352.0,96351.0,4.5e-07]
[1735827505580,0.97040695,96352.0,96351.0,4.5e-07]
[1735827506184,1.07140695,96352.0,96351.0,4.5e-07]
[1735827506744,1.07140695,96352.0,96351.0,8.595e-05]
[1735827507344,0.97140695,96352.0,96351.0,8.595e-05]
[1735827507491,0.95514885,96352.0,96351.0,8.595e-05]
[1735827508075,1.05514885,96352.0,96351.0,8.595e-05]
[1735827508280,0.90514885,96352.0,96351.0,0.07518595]
[1735827508519,0.90514885,96352.0,96351.0,0.12800455]
[1735827508724,0.90514885,96352.0,96351.0,0.12048595]
[1735827509280,1.05514885,96352.0,96351.0,0.12048595]
[1735827511460,0.95116253,96352.0,96351.0,0.12048595]
[1735827511657,0.39497,96352.0,96351.0,0.12048595]
[1735827512283,0.49497,96352.0,96351.0,0.12048595]
[1735827512489,0.39497,96352.0,96351.0,0.13253454]
[1735827512784,0.38997,96352.0,96351.0,0.34010854]
[1735827512963,0.39097,96352.0,96351.0,0.12048595]
[1735827513333,0.39497,96352.0,96351.0,0.12048595]
[1735827513558,0.39397,96352.0,96351.0,0.12048595]
[1735827513761,0.49397,96352.0,96351.0,0.12048595]
[1735827513988,0.49497,96352.0,96351.0,0.12048595]
[1735827514239,0.84895632,96352.0,96351.0,0.12048595]
[1735827514444,0.84495632,96352.0,96351.0,0.12048595]
[1735827514652,0.86121198,96352.0,96351.0,0.12048595]
[1735827514795,0.86221198,96352.0,96351.0,0.12048595]
[1735827515000,0.86121198,96352.0,96351.0,0.12048595]
[1735827515653,0.86021198,96352.0,96351.0,0.07518595]
[1735827515845,0.86121198,96352.0,96351.0,0.07518595]
[1735827518243,0.86138298,96352.0,96351.0,0.07518595]
[1735827518450,0.84512732,96352.0,96351.0,0.07518595]
[1735827520056,0.84512732,96352.0,96351.0,8.595e-05]
[1735827521452,0.741141,96352.0,96351.0,0.07928595]
[1735827521659,0.65739802,96352.0,96351.0,0.07928595]
[1735827521842,0.75739802,96352.0,96351.0,0.07928595]
[1735827522639,0.65739802,96352.0,96351.0,0.07928595]
[1735827522849,0.75739802,96352.0,96351.0,0.07928595]
[1735827523057,0.86138434,96352.0,96351.0,8.595e-05]
[1735827524731,0.65739802,96352.0,96351.0,0.08308595]
[1735827525183,0.641141,96352.0,96351.0,0.08308595]
[1735827525419,0.641141,96352.0,96351.0,0.12868595]
[1735827525876,0.391141,96352.0,96351.0,0.12868595]
[1735827526597,0.40739549,96352.0,96351.0,0.12868595]
[1735827527051,0.40739549,96352.0,96351.0,0.14155455]
[1735827527246,0.40739549,96352.0,96351.0,0.12868595]
[1735827527652,0.391141,96352.0,96351.0,0.12868595]
[1735827528086,0.390141,96352.0,96351.0,0.12868595]
[1735827528263,0.391141,96352.0,96351.0,0.12868595]
[1735827528622,0.390141,96352.0,96351.0,0.12868595]
[1735827528872,0.391141,96352.0,96351.0,0.12868595]
[1735827529254,0.390141,96352.0,96351.0,0.12868595]
[1735827529462,0.392141,96352.0,96351.0,0.12868595]
[1735827529661,0.391141,96352.0,96351.0,0.12868595]
[1735827530111,0.390141,96352.0,96351.0,0.12868595]
[1735827531355,0.391141,96352.0,96351.0,0.12868595]
[1735827532131,0.392141,96352.0,96351.0,0.12868595]
[1735827532346,0.391141,96352.0,96351.0,0.12868595]
[1735827532761,0.392141,96352.0,96351.0,0.12868595]
[1735827535858,0.40839557,96352.0,96351.0,0.12868595]
[1735827537227,0.50839557,96352.0,96351.0,0.12868595]
[1735827537603,0.50839557,96352.0,96351.0,0.08308595]
[1735827537803,0.492141,96352.0,96351.0,8.595e-05]
[1735827538003,0.592141,96352.0,96351.0,8.595e-05]
[1735827538206,0.742141,96352.0,96351.0,8.595e-05]
[1735827538406,0.741141,96352.0,96351.0,8.595e-05]
[1735827538606,0.84512732,96352.0,96351.0,8.595e-05]
[1735827540685,0.84412732,96352.0,96351.0,8.595e-05]
[1735827541282,0.94811364,96352.0,96351.0,8.595e-05]
[1735827542093,0.96437127,96352.0,96351.0,8.595e-05]
[1735827542295,0.98737127,96352.0,96351.0,8.595e-05]
[1735827542715,0.98837127,96352.0,96351.0,8.595e-05]
[1735827543093,0.99337127,96352.0,96351.0,8.595e-05]
[1735827543271,0.98837127,96352.0,96351.0,8.595e-05]
[1735827543888,0.88338495,96352.0,96351.0,8.595e-05]
[1735827544295,0.88538495,96352.0,96351.0,8.595e-05]
[1735827544707,0.89238495,96352.0,96351.0,8.595e-05]
[1735827545164,0.99238495,96352.0,96351.0,8.595e-05]
[1735827546443,0.35763,96325.0,96324.0,0.03025695]
[1735827546676,0.8476,96325.0,96324.0,0.0304052]
[1735827547077,0.96385938,96325.0,96324.0,0.0304052]
[1735827547627,0.9476,96325.0,96324.0,0.0304052]
[1735827548015,0.9486,96325.0,96324.0,0.0304052]
[1735827548598,0.9486,96325.0,96324.0,0.00014825]
[1735827551249,1.05158632,96325.0,96324.0,0.00014825]
[1735827551670,0.9476,96325.0,96324.0,0.00014825]
[1735827551867,0.38997,96325.0,96324.0,0.13114825]
[1735827552026,0.38997,96325.0,96324.0,0.33878025]
[1735827552842,0.38997,96325.0,96324.0,0.33886575]
[1735827553319,0.38997,96325.0,96324.0,0.13123375]
[1735827554563,0.40622891,96325.0,96324.0,0.13123375]
[1735827554909,0.50622891,96325.0,96324.0,0.13123375]
[1735827555844,0.75622891,96325.0,96324.0,0.04873375]
[1735827556166,0.86021523,96325.0,96324.0,0.00023375]
[1735827557782,0.84395632,96325.0,96324.0,0.00023375]
[1735827561589,0.73997,96325.0,96324.0,0.00023375]
[1735827562378,0.73997,96325.0,96324.0,0.07803375]
[1735827563482,0.86021427,96325.0,96324.0,0.00023375]
[1735827564886,0.86038527,96325.0,96324.0,0.00023375]
[1735827567684,0.84412732,96325.0,96324.0,0.00023375]
[1735827570052,0.86712732,96325.0,96324.0,0.00023375]
[1735827570509,0.94962732,96325.0,96324.0,0.00023375]
[1735827571250,1.05062732,96325.0,96324.0,0.00023375]
[1735827571658,1.05262732,96325.0,96324.0,0.00023375]
[1735827571862,1.07986045,96325.0,96324.0,7.5e-07]
[1735827572068,1.07986045,96325.0,96283.0,8.55e-05]
[1735827572069,0.6526,96309.0,96308.0,6.5e-07]
[1735827572281,0.75658632,96309.0,96308.0,6.5e-07]
[1735827572487,1.14655632,96309.0,96308.0,6.5e-07]
[1735827572900,0.94655632,96309.0,96308.0,6.5e-07]
[1735827573135,1.04655632,96309.0,96308.0,6.5e-07]
[1735827573548,1.06281985,96309.0,96308.0,6.5e-07]
[1735827573755,0.86021985,96309.0,96308.0,6.5e-07]
[1735827573933,0.84395632,96309.0,96308.0,6.5e-07]
[1735827574495,0.84495632,96309.0,96308.0,6.5e-07]
[1735827574704,0.84895632,96309.0,96308.0,6.5e-07]
[1735827575118,0.84495632,96309.0,96308.0,6.5e-07]
[1735827575369,0.84795632,96309.0,96308.0,6.5e-07]
[1735827575567,0.84495632,96309.0,96308.0,6.5e-07]
[1735827575797,0.86121833,96309.0,96308.0,6.5e-07]
[1735827575948,0.86421833,96309.0,96308.0,6.5e-07]
[1735827576202,0.86021833,96309.0,96308.0,6.5e-07]
[1735827576401,0.86121833,96309.0,96308.0,6.5e-07]
[1735827576735,0.86221833,96309.0,96308.0,6.5e-07]
[1735827576916,0.86121833,96309.0,96308.0,6.5e-07]
[1735827577774,0.86795632,96309.0,96308.0,6.5e-07]
[1735827578365,0.86695632,96309.0,96308.0,6.5e-07]
[1735827578737,0.86995632,96309.0,96308.0,6.5e-07]
[1735827578942,0.84395632,96309.0,96308.0,6.5e-07]
[1735827579141,0.84695632,96309.0,96308.0,6.5e-07]
[1735827579941,0.64297,96309.0,96308.0,6.5e-07]
[1735827580141,0.59297,96309.0,96308.0,6.5e-07]
[1735827580851,0.59397,96309.0,96308.0,6.5e-07]
[1735827581068,0.74397,96309.0,96308.0,6.5e-07]
[1735827581278,0.64397,96309.0,96308.0,6.5e-07]
[1735827581479,0.74397,96309.0,96308.0,6.5e-07]
[1735827587212,0.64397,96309.0,96308.0,6.5e-07]
[1735827587533,0.74397,96309.0,96308.0,6.5e-07]
[1735827588927,0.64397,96309.0,96308.0,6.5e-07]
[1735827590205,0.54397,96309.0,96308.0,6.5e-07]
[1735827590430,0.39397,96309.0,96307.0,0.0612436]
[1735827590638,0.39397,96309.0,96308.0,0.35995332]
[1735827591511,0.39097,96309.0,96308.0,0.35995332]
[1735827591981,0.38997,96309.0,96308.0,0.35995332]
[1735827592200,0.39097,96309.0,96308.0,0.35995332]
[1735827592410,0.21287,96309.0,96308.0,0.51381791]
[1735827592620,0.21387,96309.0,96308.0,0.51381791]
[1735827592840,0.21287,96309.0,96308.0,0.51381791]
[1735827593009,0.21287,96309.0,96308.0,0.53477812]
[1735827593266,0.21387,96309.0,96308.0,0.53477812]
[1735827593491,0.21387,96309.0,96308.0,0.60977812]
[1735827593687,0.21287,96309.0,96308.0,0.60977812]
[1735827593896,0.21387,96309.0,96308.0,0.60977812]
[1735827594551,0.21287,96309.0,96308.0,0.60977812]
[1735827594759,0.21387,96309.0,96308.0,0.60977812]
[1735827595186,0.21287,96309.0,96308.0,0.60977812]
[1735827595610,0.21387,96309.0,96308.0,0.60977812]
[1735827598231,0.21287,96309.0,96308.0,0.60977812]
[1735827598419,0.21187,96309.0,96308.0,0.24824653]
[1735827598677,0.21287,96309.0,96308.0,0.45591353]
[1735827598898,0.21387,96309.0,96308.0,0.45591353]
[1735827599296,0.21187,96309.0,96308.0,0.45591353]
[1735827599684,0.21287,96309.0,96308.0,0.45599893]
[1735827599935,0.2130408,96309.0,96308.0,0.43503872]
[1735827600149,0.20826239,96309.0,96308.0,0.43503872]
[1735827600935,0.20726239,96309.0,96308.0,0.43503872]
[1735827601277,0.20826239,96309.0,96308.0,0.43503872]
[1735827601479,0.20726239,96309.0,96308.0,0.43503872]
[1735827601927,0.20826239,96309.0,96308.0,0.43503872]
[1735827604023,0.20826239,96309.0,96308.0,8.54e-05]
[1735827604211,0.30826239,96309.0,96308.0,8.54e-05]
[1735827604668,0.42452181,96309.0,96308.0,8.54e-05]
[1735827605067,0.42352181,96309.0,96308.0,8.54e-05]
[1735827605944,0.42452181,96309.0,96308.0,8.54e-05]
[1735827606154,0.50442181,96309.0,96308.0,8.54e-05]
[1735827607028,0.75840813,96309.0,96308.0,8.54e-05]
[1735827607239,0.78140813,96309.0,96308.0,8.54e-05]
[1735827607447,0.82870813,96309.0,96308.0,8.54e-05]
[1735827608041,0.78944871,96309.0,96308.0,8.54e-05]
[1735827609702,0.86785594,96309.0,96308.0,8.54e-05]
[1735827609901,0.78944871,96309.0,96308.0,8.54e-05]
[1735827610099,0.81244871,96309.0,96308.0,8.54e-05]
[1735827615641,0.82871141,96309.0,96308.0,8.54e-05]
[1735827620034,0.81244871,96309.0,96308.0,8.54e-05]
[1735827623177,0.82871143,96309.0,96308.0,8.54e-05]
[1735827623931,0.83171143,96309.0,96308.0,8.54e-05]
[1735827624144,0.70051143,96309.0,96308.0,8.54e-05]
[1735827624353,0.70351143,96309.0,96308.0,8.54e-05]
[1735827624538,0.70251143,96309.0,96308.0,8.54e-05]
[1735827624764,0.70351143,96309.0,96308.0,8.54e-05]
[1735827625886,0.68724871,96309.0,96308.0,8.54e-05]
[1735827630728,0.76584871,96309.0,96308.0,8.54e-05]
[1735827631560,0.77259661,96309.0,96308.0,8.54e-05]
[1735827632509,0.78885905,96309.0,96308.0,8.54e-05]
[1735827635628,0.77259661,96309.0,96308.0,8.54e-05]
[1735827636665,0.76959661,96309.0,96308.0,8.54e-05]
[1735827637107,0.77259661,96309.0,96308.0,8.54e-05]
[1735827637463,0.77359661,96309.0,96308.0,8.54e-05]
[1735827637873,0.77259661,96309.0,96308.0,8.54e-05]
[1735827638424,0.77359661,96309.0,96308.0,8.54e-05]
[1735827638575,0.78985898,96309.0,96308.0,8.54e-05]
[1735827640202,0.71125898,96309.0,96308.0,8.54e-05]
[1735827640442,0.33427266,96309.0,96308.0,8.54e-05]
[1735827640678,0.23427266,96309.0,96308.0,0.0752854]
[1735827640908,0.23360631,96309.0,96308.0,0.08281394]
[1735827641350,0.22960631,96309.0,96308.0,0.08281394]
[1735827641567,0.23260631,96309.0,96308.0,0.08281394]
[1735827641803,0.23360631,96309.0,96308.0,0.08281394]
[1735827642626,0.23360631,96309.0,96308.0,0.0752854]
[1735827642831,0.21334394,96309.0,96308.0,0.0752854]
[1735827643064,0.21334394,96309.0,96308.0,8.54e-05]
[1735827643270,0.31434394,96309.0,96308.0,8.54e-05]
[1735827643477,0.21434394,96309.0,96308.0,8.54e-05]
[1735827643996,0.21334394,96309.0,96308.0,8.54e-05]
[1735827644199,0.21234394,96309.0,96308.0,8.54e-05]
[1735827644421,0.21334394,96309.0,96308.0,8.54e-05]
[1735827644785,0.21234394,96309.0,96308.0,8.54e-05]
[1735827645212,0.21334394,96309.0,96308.0,8.54e-05]
[1735827646024,0.21434394,96309.0,96308.0,8.54e-05]
[1735827647015,0.21434394,96309.0,96308.0,0.0803854]
[1735827647421,0.20826239,96309.0,96308.0,0.12405416]
[1735827647807,0.21434408,96309.0,96308.0,0.12405416]
[1735827648163,0.21434408,96309.0,96308.0,0.22804048]
[1735827652930,0.21434408,96309.0,96308.0,0.12405416]
[1735827654412,0.21234408,96309.0,96308.0,0.12405416]
[1735827654826,0.21434408,96309.0,96308.0,0.12405416]
[1735827655065,0.21334408,96309.0,96308.0,0.12405416]
[1735827656097,0.21234408,96309.0,96308.0,0.12405416]
[1735827656503,0.21434408,96309.0,96308.0,0.12705416]
[1735827658426,0.21434408,96309.0,96308.0,0.12713956]
[1735827658781,0.21404408,96309.0,96308.0,0.12713956]
[1735827659815,0.21404408,96309.0,96308.0,0.23112588]
[1735827661574,0.21404408,96309.0,96308.0,0.25146212]
[1735827661992,0.21404408,96309.0,96308.0,0.4067225]
[1735827666653,0.20796239,96309.0,96308.0,0.4067225]
[1735827667480,0.21410305,96309.0,96308.0,0.4067225]
[1735827668101,0.21410305,96309.0,96308.0,0.41721824]
[1735827669426,0.20796239,96309.0,96308.0,0.41721824]
[1735827669596,0.20796239,96309.0,96308.0,0.44021824]
[1735827669825,0.09513073,96358.0,96326.0,0.00486927]
[1735827670018,0.09513073,96364.0,96348.0,0.11164867]
[1735827670252,0.0062422,96357.0,96354.0,0.11164867]
[1735827670547,0.0062422,96357.0,96356.0,0.0787]
[1735827670751,0.0062422,96357.0,96356.0,0.23138632]
[1735827670956,0.0062422,96357.0,96356.0,0.2518294]
[1735827671170,0.000171,96367.0,96356.0,0.2518294]
[1735827671381,0.00031925,96367.0,96358.0,0.00486927]
[1735827671578,0.00031925,96367.0,96366.0,0.207542]
[1735827671774,0.00031925,96367.0,96366.0,0.31152832]
[1735827672808,0.00031925,96367.0,96366.0,0.003]
[1735827673217,0.00031925,96367.0,96366.0,0.008]
[1735827673218,0.00131925,96367.0,96366.0,0.008]
[1735827673423,0.00764006,96367.0,96358.0,0.207558]
[1735827673624,0.00201925,96367.0,96366.0,0.006]
[1735827673833,0.00301925,96367.0,96366.0,0.012]
[1735827674048,0.00941056,96367.0,96366.0,0.012]
[1735827674256,0.00301925,96367.0,96366.0,0.11598632]
[1735827674459,0.00301925,96367.0,96366.0,0.35294488]
[1735827674667,0.00301925,96367.0,96366.0,0.39880484]
[1735827674874,0.00201925,96367.0,96366.0,0.39280484]
[1735827675290,0.00301925,96367.0,96366.0,0.39280484]
[1735827675704,0.00201925,96367.0,96366.0,0.39280484]
[1735827676062,0.00301925,96367.0,96366.0,0.39880484]
[1735827676270,0.00301925,96367.0,96366.0,0.39393557]
[1735827676693,0.00301925,96367.0,96366.0,0.39880484]
[1735827677817,0.00301925,96367.0,96366.0,0.39393557]
[1735827678025,0.00301925,96367.0,96366.0,0.11598632]
[1735827678379,0.01926606,96367.0,96366.0,0.11460685]
[1735827678772,0.00301925,96367.0,96366.0,0.11460685]
[1735827679621,0.207499,96386.0,96366.0,0.11460685]
[1735827679865,0.20799298,96386.0,96371.0,0.20753]
[1735827680065,0.00643099,96385.0,96372.0,0.10398632]
[1735827680289,0.00643099,96385.0,96373.0,0.207526]
[1735827680501,0.00643099,96385.0,96377.0,0.207518]
[1735827680704,0.00049398,96386.0,96377.0,0.207518]
[1735827680880,0.09062471,96388.0,96377.0,0.207518]
[1735827681222,0.00642682,96387.0,96378.0,0.207516]
[1735827681669,0.00642682,96387.0,96373.0,0.207526]
[1735827681870,0.01624666,96385.0,96373.0,0.207526]
[1735827682266,0.00641891,96384.0,96376.0,0.207518]
[1735827682446,0.00641891,96384.0,96378.0,0.003]
[1735827682645,0.09062471,96388.0,96376.0,0.207518]
[1735827682847,0.00641891,96383.0,96380.0,0.207511]
[1735827683045,0.00014811,96396.0,96386.0,0.207497]
[1735827683246,0.09062471,96395.0,96381.0,0.207509]
[1735827683527,0.09062471,96395.0,96383.0,0.207505]
[1735827683528,0.09705795,96395.0,96383.0,0.207505]
[1735827683734,0.001,96384.0,96383.0,0.207505]
[1735827683936,0.001,96384.0,96383.0,0.31149132]
[1735827684891,0.001,96384.0,96383.0,0.47321983]
[1735827685101,0.00014811,96396.0,96395.0,0.207479]
[1735827685512,0.00114811,96396.0,96395.0,0.207479]
[1735827686470,0.00014811,96396.0,96395.0,0.207479]
[1735827686669,0.00114811,96396.0,96395.0,0.214479]
[1735827686898,0.00114811,96396.0,96395.0,0.218479]
[1735827689237,0.00114811,96396.0,96395.0,0.011]
[1735827689888,0.00763999,96396.0,96395.0,0.011]
[1735827690126,0.00114811,96396.0,96395.0,0.011]
[1735827690363,0.37624982,96396.0,96395.0,0.011]
[1735827690538,0.38275855,96396.0,96395.0,0.011]
[1735827690787,0.63275855,96396.0,96395.0,0.011]
[1735827691006,0.73674487,96396.0,96395.0,0.011]
[1735827691211,0.73674487,96396.0,96395.0,0.007]
[1735827691439,0.09062471,96381.0,96371.0,0.09291776]
[1735827691675,0.15,96395.0,96366.0,8.54e-05]
[1735827691676,0.207527,96373.0,96366.0,8.54e-05]
[1735827691887,0.09062471,96376.0,96366.0,8.54e-05]
[1735827692104,0.09062471,96375.0,96366.0,8.54e-05]
[1735827692325,0.207531,96371.0,96366.0,8.54e-05]
[1735827692531,0.0064534,96370.0,96366.0,8.54e-05]
[1735827692736,0.09062471,96375.0,96366.0,8.54e-05]
[1735827692737,0.09062471,96371.0,96366.0,8.54e-05]
[1735827692956,0.2139864,96370.0,96366.0,8.54e-05]
[1735827693164,0.23023561,96370.0,96366.0,0.0050854]
[1735827693367,0.23023561,96370.0,96366.0,0.0020854]
[1735827693567,0.02270261,96370.0,96366.0,0.0020854]
[1735827694395,0.02270261,96370.0,96367.0,0.02096394]
[1735827694601,0.0064534,96370.0,96367.0,0.02096394]
[1735827694800,0.0074534,96370.0,96367.0,0.02096394]
[1735827695011,0.09062471,96372.0,96367.0,0.02096394]
[1735827695217,0.00645153,96369.0,96366.0,0.0050854]
[1735827695443,0.207533,96370.0,96366.0,0.0050854]
[1735827695643,0.207539,96367.0,96366.0,8.54e-05]
[1735827695879,0.208533,96370.0,96366.0,0.0060854]
[1735827696071,0.00644779,96367.0,96366.0,0.0060854]
[1735827696278,0.207533,96370.0,96366.0,8.54e-05]
[1735827696498,0.00644779,96367.0,96366.0,0.0060854]
[1735827696811,0.00644599,96367.0,96366.0,0.0060854]
[1735827696987,0.00644599,96367.0,96366.0,0.00657938]
[1735827697193,0.001,96369.0,96366.0,0.00657938]
[1735827697379,0.00644779,96367.0,96366.0,0.00657938]
[1735827697573,0.01724907,96369.0,96366.0,0.00657938]
[1735827697813,0.00644966,96368.0,96366.0,0.00657938]
[1735827698213,0.52529966,96368.0,96366.0,0.00657938]
[1735827698418,0.52529966,96368.0,96366.0,0.00357938]
[1735827698625,0.29816371,96367.0,96366.0,0.00957938]
[1735827698778,0.81701371,96367.0,96366.0,0.00657938]
[1735827698978,0.82338198,96367.0,96366.0,0.00357938]
[1735827699192,0.82338198,96367.0,96366.0,0.01057938]
[1735827699467,0.90118198,96367.0,96366.0,0.00357938]
[1735827699782,0.90118198,96367.0,96366.0,0.00057938]
[1735827699955,0.90218198,96367.0,96366.0,0.00757938]
[1735827700168,1.15118198,96367.0,96366.0,0.00057938]
[1735827700327,1.15118198,96367.0,96366.0,0.00357938]
[1735827701166,1.2551683,96367.0,96366.0,0.00357938]
[1735827701568,1.2551683,96367.0,96366.0,0.00757938]
[1735827701767,1.2551683,96367.0,96366.0,0.00457938]
[1735827701968,1.2551683,96367.0,96366.0,0.00257938]
[1735827702190,1.2551683,96367.0,96366.0,0.00557938]
[1735827702370,1.27141965,96367.0,96366.0,0.00557938]
[1735827704347,1.16743333,96367.0,96366.0,0.00557938]